Cogmind - Beta 10.2 @@@ ROGUE MODE // 2021.08.08 @ 12:44:08 Player: Human Yoyo Result: Self-destructed Performance ------------- Evolutions (1) 500 Regions Visited (3) 600 Robots Destroyed (6) 30 Value Destroyed (198) 198 Prototype IDs (0) 0 Alien Tech Used (0) 0 Bonus (0) 0 TOTAL SCORE: 1328 Bonus ------- None Cogmind --------- Core Integrity 291/400 Matter 300/300 Energy 160/160 System Corruption 0% Temperature Cool (0) Movement Core (150) Ox2 Location -9/Materials Parts ------- > --- POWER (1) -------- Light Nuclear Core > --- PROPULSION (2) --- (None) > --- UTILITY (2) ------ Small Storage Unit Visual Processing Unit > --- WEAPON (4) ------- (None) > --- INVENTORY (6) ---- Light Ion Engine Aluminum Leg Structural Scanner Peak State ------------ > --- POWER ------------ Light Nuclear Core > --- PROPULSION ------- Aluminum Leg Aluminum Leg > --- UTILITY ---------- Small Storage Unit Visual Processing Unit > --- WEAPON ----------- Medium Laser Small Laser Particle Gun Particle Gun > --- INVENTORY -------- Light Ion Engine Aluminum Leg Structural Scanner [Rating: 14] Favorites ----------- Power Light Ion Engine Engine Light Ion Engine Power Core Light Nuclear Core Propulsion Aluminum Leg Leg Aluminum Leg Utility Small Storage Unit Storage Small Storage Unit Processor Visual Processing Unit Protection Propulsion Shielding Weapon Medium Laser Energy Gun Medium Laser Build | -11 -10 -10 -9 ------- Run | Scr Mat Min Mat Slots Evolved 2 | . . . 2 Power . | . . . . Propulsion . | . . . . Utility . | . . . . Weapon 2 | . . . 2 Parts Attached 13 | 6 4 1 2 Power 2 | 1 . 1 . Engine 1 | 1 . . . Core 1 | . . 1 . Reactor . | . . . . Propulsion 2 | 2 . . . Treads . | . . . . Leg 2 | 2 . . . Wheel . | . . . . Hover . | . . . . Flight . | . . . . Utility 3 | 1 2 . . Device . | . . . . Storage 1 | 1 . . . Processor 1 | . 1 . . Hackware . | . . . . Protection 1 | . 1 . . Artifact . | . . . . Weapon 6 | 2 2 . 2 Energy Gun 6 | 2 2 . 2 Energy Cannon . | . . . . Ballistic Gun . | . . . . Ballistic Cannon . | . . . . Launcher . | . . . . Special Weapon . | . . . . Impact Weapon . | . . . . Slashing Weapon . | . . . . Piercing Weapon . | . . . . Special Melee Weapon . | . . . . Unidentified Prototypes . | . . . . Parts Lost 7 | . 1 . 6 Power . | . . . . Propulsion 2 | . . . 2 Utility . | . . . . Weapon 5 | . 1 . 4 Highest Loss Streak 6 | . 1 . 6 Average Slot Usage (%) 92 | . 98 100 78 Engine 8 | . 14 8 . Core 5 | . . 5 11 Leg 24 | . 28 28 15 Storage 13 | . 14 14 11 Processor 8 | . 2 14 11 Protection 3 | . 9 . . Energy Gun 28 | . 28 28 29 Naked Turns . | . . . . Heaviest Build 18 | 11 13 14 18 Greatest Support 20 | 20 20 20 20 Greatest Overweight (x) 2 | . . . 2 Average Overweight (x) . | . . . . Largest Inventory Capacity 6 | 6 6 6 6 Average Capacity 5 | 4 6 6 6 Most Carried 6 | 4 5 6 4 Average Carried 3 | 1 2 4 3 Final Capacity 6 | 6 6 6 6 Final Carried 5 | 2 4 5 3 Class Distribution -------------------- 82% | Mutant 17% | Scavenger-Skirmisher Dominant Class ---------------- Mutant | -10/Materials Mutant | -10/Mines Scavenger-Skirmisher | -9/Materials Resources | -11 -10 -10 -9 ----------- Run | Scr Mat Min Mat Matter Collected 305 | 218 67 20 . Remotely . | . . . . Salvage Created 213 | . 102 95 16 Parts 15 | . 7 5 3 Haulers Intercepted . | . . . . Recyclers Shooed 2 | . 2 . . Parts Field Recycled . | . . . . Retrieved Matter . | . . . . Parts Self-Destructed . | . . . . Prevented . | . . . . Kills | -11 -10 -10 -9 ------- Run | Scr Mat Min Mat Combat Hostiles Destroyed 5 | . 2 2 1 Guns 5 | . 2 2 1 Classes Destroyed 3 | . 2 . 1 Watcher 1 | . 1 . . Swarmer 1 | . . . 1 Grunt 4 | . 2 2 . Best Kill Streak 2 | . 1 2 1 Combat Bots Only 2 | . 1 2 1 Max Kills in Single Turn 1 | . 1 1 1 Gunslinging . | . . . . Exploded . | . . . . Melee . | . . . . Uniques/NPCs Destroyed . | . . . . Combat | -11 -10 -10 -9 -------- Run | Scr Mat Min Mat Damage Taken 654 | . 196 168 290 Core 200 | . 43 48 109 Absorbed by Shields . | . . . . Core Remaining (%) 81 | 100 . 63 . Volleys Fired 21 | . 11 5 5 Largest 4 | . 2 2 4 Hottest 220 | . 115 115 220 Shots Fired 47 | . 22 10 15 Gun 47 | . 22 10 15 Cannon . | . . . . Launcher . | . . . . Special . | . . . . Kinetic . | . . . . Thermal 47 | . 22 10 15 Explosive . | . . . . Electromagnetic . | . . . . Robot Hit Streak 6 | . 6 3 6 Robot Miss Streak 4 | . 4 1 1 Penetration Max . | . . . . Secondary Targets 1 | . . 1 . Max Gunslinging Chain 1 | . . 1 . Shots Hit Robots 30 | . 13 7 10 Core Hits 13 | . 6 5 2 Critical Hits . | . . . . Critical Kills . | . . . . Critical Parts Destroyed . | . . . . Melee Attacks . | . . . . Impact . | . . . . Slashing . | . . . . Piercing . | . . . . Sneak Attacks . | . . . . Combat Hostiles . | . . . . Follow-up Attacks . | . . . . Damage Inflicted 416 | . 169 123 124 Guns 416 | . 169 123 124 Cannons . | . . . . Explosions . | . . . . Melee . | . . . . Ramming . | . . . . Kinetic . | . . . . Thermal 416 | . 169 123 124 Explosive . | . . . . Electromagnetic . | . . . . Impact . | . . . . Slashing . | . . . . Piercing . | . . . . Highest Corruption . | . . . . Average Corruption . | . . . . Corruption Purged . | . . . . Overload Shots . | . . . . Overflow Damage . | . . . . Projectiles . | . . . . Explosions . | . . . . Melee . | . . . . Knockbacks . | . . . . Impact . | . . . . Kinetic . | . . . . Secondary . | . . . . Self-Inflicted Damage . | . . . . Shots . | . . . . Rammed . | . . . . Targets Rammed . | . . . . Kicked . | . . . . Crushed . | . . . . Highest Temperature 327 | . 157 318 327 Average Temperature 121 | . 71 166 157 Received Heat Transfer 207 | . 117 90 . Effects 1 | . . 1 . Energy Bleed 1 | . . 1 . Siege Activations . | . . . . Robots Corrupted . | . . . . Combat Hostiles . | . . . . Parts Fried . | . . . . Impact Corruptions . | . . . . Robots Melted . | . . . . Combat Hostiles . | . . . . Parts Melted . | . . . . Heat Transferred 1149 | . 482 333 334 Parts Sabotaged . | . . . . Parts Stolen . | . . . . Parts Stripped . | . . . . Power Chain Reactions . | . . . . Missiles Intercepted . | . . . . Alert | -11 -10 -10 -9 ------- Run | Scr Mat Min Mat Peak Influence 96 | . 77 80 96 Initial 31 | . . 30 31 Average 37 | . 31 53 40 Maximum Alert Level . | . . . . Low Security (%) 100 | 100 100 100 100 Level 1 . | . . . . Level 2 . | . . . . Level 3 . | . . . . Level 4 . | . . . . Level 5 . | . . . . High Security . | . . . . Max Security . | . . . . Squads Dispatched . | . . . . Investigation . | . . . . Extermination . | . . . . Reinforcement . | . . . . Assault . | . . . . Garrison . | . . . . Intercept . | . . . . Construction Impeded . | . . . . Haulers Reinforced . | . . . . Stealth | -11 -10 -10 -9 --------- Run | Scr Mat Min Mat Distress Signals . | . . . . Communications Jammed . | . . . . Distress Signals . | . . . . Times Spotted 14 | . 4 2 8 Peak Tracking Total 5 | . 2 2 5 Tactical Retreats 2 | . . . 2 Traps | -11 -10 -10 -9 ------- Run | Scr Mat Min Mat Traps Triggered . | . . . . Indirectly . | . . . . Trap Hack Attempts . | . . . . Triggered . | . . . . Disarmed . | . . . . Reprogrammed . | . . . . Reused . | . . . . Traps Extracted . | . . . . Installed . | . . . . Triggered . | . . . . Machines | -11 -10 -10 -9 ---------- Run | Scr Mat Min Mat Machines Disabled 1 | . . . 1 Max in Single Turn 1 | . . . 1 Machines Sabotaged . | . . . . Garrisons Compromised . | . . . . Overloaded Fab Kills . | . . . . Fab Network Shutdowns . | . . . . Hacking | -11 -10 -10 -9 --------- Run | Scr Mat Min Mat Machines Accessed . | . . . . Terminals . | . . . . Fabricators . | . . . . Repair Stations . | . . . . Recycling Units . | . . . . Scanalyzers . | . . . . Garrison Access . | . . . . Total Hacks . | . . . . Successful . | . . . . Failed . | . . . . Catastrophic . | . . . . Database Lockouts . | . . . . Manual . | . . . . Terminals . | . . . . Fabricators . | . . . . Repair Stations . | . . . . Recycling Units . | . . . . Scanalyzers . | . . . . Garrison Access . | . . . . Terminal Hacks . | . . . . Fabricator Hacks . | . . . . Repair Station Hacks . | . . . . Recycling Unit Hacks . | . . . . Scanalyzer . | . . . . Garrison Access Hacks . | . . . . Unauthorized Hacks . | . . . . Terminals . | . . . . Fabricators . | . . . . Repair Stations . | . . . . Recycling Units . | . . . . Scanalyzers . | . . . . Garrison Access . | . . . . Data Cores Recovered . | . . . . Used . | . . . . Hacking Detections . | . . . . Full Trace Events . | . . . . Feedback Events . | . . . . Feedback Blocked . | . . . . Robot Schematics Acquired . | . . . . Robots Built . | . . . . Matter . | . . . . Time . | . . . . Total Robot Build Rating . | . . . . Part Schematics Acquired . | . . . . Parts Built . | . . . . Matter . | . . . . Time . | . . . . Total Part Build Rating . | . . . . Parts Repaired . | . . . . Time . | . . . . Parts Recycled . | . . . . Recycled Matter . | . . . . Retrieved Matter . | . . . . Retrieved Components . | . . . . Parts Scanalyzed . | . . . . Part Schematics Acquired . | . . . . Parts Damaged . | . . . . Bothacking | -11 -10 -10 -9 ------------ Run | Scr Mat Min Mat Used RIF Installer . | . . . . Robots Hacked . | . . . . Non-combat . | . . . . Combat . | . . . . Robot Hacks Applied . | . . . . Relay Couplers Released . | . . . . Robots Rewired . | . . . . Allies Hacked . | . . . . Hacks Repelled . | . . . . Allies | -11 -10 -10 -9 -------- Run | Scr Mat Min Mat Total Allies . | . . . . Largest Group . | . . . . Highest-Rated Group . | . . . . Highest-Rated Ally . | . . . . Total Orders . | . . . . Ally Attacks . | . . . . Total Damage . | . . . . Kills . | . . . . Allies Corrupted . | . . . . Allies Melted . | . . . . Intel | -11 -10 -10 -9 ------- Run | Scr Mat Min Mat Robot Analysis Total . | . . . . Derelict Logs Recovered . | . . . . Drone Launches . | . . . . Drone Recoveries . | . . . . Exploration | -11 -10 -10 -9 ------------- Run | Scr Mat Min Mat Turns Passed 611 | 44 231 166 170 Spaces Moved 413 | 34 149 114 116 Core 45 | 13 . . 32 Treads . | . . . . Legs 368 | 21 149 114 84 Wheels . | . . . . Hover . | . . . . Flight . | . . . . Fastest Speed 50 | 50 120 120 120 Average Speed 120 | 93 120 120 128 Slowest Speed 150 | 120 120 120 150 Overloaded Moves . | . . . . Propulsion Burnouts . | . . . . Robots Hopped . | . . . . Cave-ins Triggered . | . . . . Exploration Rate (%) 18 | 4 35 19 14 Regions Visited 3 Branch Regions 1 Pre-discovered Areas . | . . . . Known Exits Taken . | . . . . Unknown Exits Taken 3 | 1 1 1 . Scrap Searched . | . . . . Spaces Dug . | . . . . Terrain Destroyed . | . . . . Melee . | . . . . Projectile . | . . . . AOE . | . . . . Terrain Rammed . | . . . . Walls Destroyed . | . . . . Machines Disabled . | . . . . Actions | -11 -10 -10 -9 --------- Run | Scr Mat Min Mat Total 485 | 46 180 134 125 Wait 19 | . 9 8 2 Move 410 | 33 148 113 116 Hop . | . . . . Pick Up 17 | 7 6 4 . Fast Attach 1 | 1 . . . Attach 12 | 5 4 1 2 Detach . | . . . . Swap . | . . . . Drop 5 | . 2 3 . Fire 21 | . 11 5 5 Melee . | . . . . Ram . | . . . . Kick . | . . . . Crush . | . . . . Escape Stasis . | . . . . Rewire . | . . . . Trap . | . . . . Miscellaneous . | . . . . Route ------- -11/Scrapyard -10/Materials (discovered 2 exits: [*Min x2]) -10/Mines -9/Materials History --------- Turn | Location | Event 11 | -11/Scrapyard | Discovered new exit (range 14) 45 | -11/Scrapyard | Entered Materials 238 | -10/Materials | Discovered new exit (range 12) 257 | -10/Materials | Discovered new exit (range 18) 276 | -10/Materials | Entered Mines 305 | -10/Mines | Found a hidden stash of uninstalled traps 308 | -10/Mines | Build established: Mutant 325 | -10/Mines | Met a Derelict bent on vengeance 430 | -10/Mines | Discovered new exit (range 11) 442 | -10/Mines | Entered Materials 442 | -9/Materials | Evolved 2 slots: Weapon x2 594 | -9/Materials | Lost 6 parts (2n4w) 612 | -9/Materials | Self-destructed Last Messages --------------- LOCATION=UNKNOWN GOAL=ESCAPE 00464_ K-01 Serf collects debris. 00465_ Connecting with Scanalyzer... 00465_ Current location identified: Materials 00479_ K-01 Serf cleans the Electrolysis Chamber. 00481_ K-01 Serf collects debris. 00536_ Electrolysis Chamber disabled. 00551_ S-10 Pest destroyed. 00553_ Particle Gun destroyed. 00556_ Sml. Laser destroyed. 00558_ K-01 Serf collects debris. 00561_ Med. Laser destroyed. 00561_ Particle Gun destroyed. 00563_ Aluminum Leg destroyed. 00564_ R-06 Scavenger collects Lgt. Assault Rifle. 00564_ K-01 Serf cleans the Nuclear Reactor. 00569_ U-05 Engineer builds a Door. 00570_ R-06 Scavenger collects Flight Unit. 00610_ K-01 Serf collects debris. Map ----- +----------------------------------------------------+ | ?????????????????????????????????????????????????? | | ?????????????????????????????????????????????????? | | ?????????????????????????????????????????????????? | | ?????????????????????????????????????????????????? | | ?????????????????????????????????????????????????? | | ?????????????????????????????????????????????????? | | ?????????????????????????????????????????????????? | | ?????????????????????????????????????????????????? | | ??????????????????????????????????????????#+####?? | | ??????????????????????????????????????????? #?? | | ??????????????????????????????????????????? #?? | | ??????????????????????????????????????????? #?? | | ???????????????????????????????????????????# #?? | | ???????????????????????????????????????????# #?? | | ????????????????????????????????????######## #?? | | ????????????????????????????????????# # #?? | | ????????????????????????????????????# # #?? | | ??????????????????#####?????????????# "" # #?? | | ?????????????????##!!!!##???????????# """ # #?? | | ?????????????????#! !#???????????# S" # #?? | | ???????????#######! !#???????????# # #?? | | ???????????# # #################+## ### | | ???????????# ^ T | | ???????????# | | ???????????? """ l | | ???????????# """ @#/########## #######+# | | ???????????# """ #% #?# #???# | | ???????????# u#""" #?# #???# """ | | ???????????# s#""" #?# #???# """ | | ???????????# """ """ #""" #?# #???# """ | | ???????????# """ """ r# #?# #???# | | ????????????? """ """ #""" ### ##??# ""T | | ????????????? u #""" ## #??# """ | | ????????????? #""" ## #??# | | ???????????? """ """ s # + #??##### | | ???????????? ?""" """u ########### #??????? | | ???????????????"" "" k #?????????# #??????? | | ??????????????? #?????????#######??????? | | ??????????????? ? #??????????????????????? | | ??????????????""" ?""" #??????????????????????? | | ???????????????????""" #??????????????????????? | | ????????????????????"" #??????????????????????? | | ????????????????????? #??????????????????????? | | ????????????????????? #??????????????????????? | | ?????????????????????" ??????????????????????? | | ?????????????????????" ??????????????????????? | | ?????????????????????? ???????????????????????? | | ?????????????????????????????????????????????????? | | ?????????????????????????????????????????????????? | | ?????????????????????????????????????????????????? | +----------------------------------------------------+ Best States ------------- Heat Dissipation 28 Energy Generation 14 Energy Capacity 160 Matter Stores 300 Matter Capacity 300 Sight Range 18 Terrain Scan Density 10 Propulsion Shielding 33 Evasion (%) 50 Item Schematics ----------------- None Robot Schematics ------------------ None Fabricated ------------ Nothing Alien Tech Used ----------------- None Achievements -------------- None Challenges ------------ None Game ------ Seed ReflectiveFlightTerminator Manual? 0 Play Time 00:06:12 Cumulative 7.8 hours Start 2021.08.08 @ 12:39:16 End 2021.08.08 @ 12:44:08 Sessions 1 Manual Loads 0 Difficulty Rogue Special Mode None Game No. 14 Rogue 14 Adventurer 0 Explorer 0 Win Type - Total 0 Types 0/0/0/0/0/0/0/0/0 Lore% 3 Gallery% 16 Achievement% 11 Wizard Run 0 Options --------- ASCII 0 Keyboard 0 Movement Mouse Keybinds 0 Fullscreen 1 Font 18/SmallcapsGlow Map View 76x50 Tactical HUD 1 Map Filters NONE Filters NONE Steam 1 RUN: 4f62ef8b-a5de-47a4-a92c-265e9d773245